Cogmind - Beta 9.3 @@@ ROGUE MODE // 2019.12.30 @ 22:45:56 Player: mrbill82 Result: Destroyed by G-34 Mercenary with Small Laser Performance ------------- Evolutions (1) 500 Regions Visited (2) 400 Robots Destroyed (13) 65 Value Destroyed (365) 365 Prototype IDs (0) 0 Alien Tech Used (0) 0 Bonus (0) 0 TOTAL SCORE: 1330 Bonus ------- None Cogmind --------- Core Integrity 0/400 Matter 300/300 Energy 100/100 System Corruption 0% Temperature Cool (12) Movement Core (50) Location -9/Materials Parts ------- > --- POWER (1) -------- (None) > --- PROPULSION (4) --- (None) > --- UTILITY (2) ------ (None) > --- WEAPON (2) ------- (None) > --- INVENTORY (4) ---- Assault Rifle Light Assault Rifle Peak State ------------ > --- POWER ------------ Improved Ion Engine > --- PROPULSION ------- Aluminum Leg Aluminum Leg Wheel Armored Wheel > --- UTILITY ---------- Heat Sink Heat Sink > --- WEAPON ----------- Backup Laser I > --- INVENTORY -------- Assault Rifle Light Assault Rifle [Rating: 10] Favorites ----------- Power Ion Engine Engine Ion Engine Propulsion Aluminum Leg Leg Aluminum Leg Wheel Wheel Utility Terrain Scan Processor Device Terrain Scanner Processor Terrain Scan Processor Protection Light Armor Plating Weapon EM Pulse Gun Energy Gun EM Pulse Gun Energy Cannon Light EM Pulse Cannon Ballistic Gun Assault Rifle Launcher Grenade Launcher Build | -11 -10 -9 ------- Run | Scr Mat Mat Slots Evolved 2 | . . 2 Power . | . . . Propulsion 2 | . . 2 Utility . | . . . Weapon . | . . . Parts Attached 21 | 5 5 11 Power 4 | 1 1 2 Engine 4 | 1 1 2 Core . | . . . Reactor . | . . . Propulsion 6 | 2 . 4 Treads . | . . . Leg 4 | 2 . 2 Wheel 2 | . . 2 Hover . | . . . Flight . | . . . Utility 5 | . 2 3 Device 3 | . 1 2 Storage . | . . . Processor 1 | . 1 . Hackware . | . . . Protection 1 | . . 1 Artifact . | . . . Weapon 6 | 2 2 2 Energy Gun 2 | 1 . 1 Energy Cannon 1 | . . 1 Ballistic Gun 1 | 1 . . Ballistic Cannon . | . . . Launcher 2 | . 2 . Special Weapon . | . . . Impact Weapon . | . . . Slashing Weapon . | . . . Piercing Weapon . | . . . Special Melee Weapon . | . . . Unidentified Prototypes . | . . . Parts Lost 17 | . 6 11 Power 2 | . 1 1 Propulsion 6 | . 2 4 Utility 4 | . 1 3 Weapon 5 | . 2 3 Highest Loss Streak 7 | . 6 7 Average Slot Usage (%) 72 | . 88 53 Engine 9 | . 14 5 Leg 17 | . 26 7 Wheel 9 | . . 19 Device 9 | . 9 9 Processor 5 | . 9 . Protection 1 | . . 2 Energy Gun 10 | . 13 8 Launcher 6 | . 12 . Naked Turns 8 | . . 8 Heaviest Build 14 | 7 11 14 Greatest Support 22 | 20 20 22 Greatest Overweight (x) 2 | . . 2 Average Overweight (x) . | . . . Largest Inventory Capacity 4 | 4 4 4 Average Capacity 4 | 4 4 4 Most Carried 4 | 2 4 3 Average Carried 2 | . 2 2 Final Capacity 4 | 4 4 4 Final Carried 2 | 2 2 2 Class Distribution -------------------- 86% | Mutant 13% | Scavenger-Mutant Dominant Class ---------------- Mutant | -10/Materials Mutant | -9/Materials Resources | -11 -10 -9 ----------- Run | Scr Mat Mat Matter Collected 410 | 218 102 90 Remotely . | . . . Salvage Created 462 | . 261 201 Parts 31 | . 21 10 Haulers Intercepted . | . . . Recyclers Shooed . | . . . Parts Field Recycled . | . . . Retrieved Matter . | . . . Parts Self-Destructed . | . . . Prevented . | . . . Kills | -11 -10 -9 ------- Run | Scr Mat Mat Combat Hostiles Destroyed 12 | . 8 4 Melee 1 | . 1 . Guns 8 | . 5 3 Cannons 1 | . . 1 AOE 2 | . 2 . Classes Destroyed 4 | . 3 1 Builder 1 | . 1 . Swarmer 3 | . 3 . Grunt 8 | . 5 3 Sentry 1 | . . 1 Best Kill Streak 5 | . 5 2 Combat Bots Only 5 | . 5 2 Max Kills in Single Turn 2 | . 2 1 Gunslinging . | . . . Exploded 1 | . 1 . Melee 1 | . 1 . Uniques/NPCs Destroyed . | . . . Combat | -11 -10 -9 -------- Run | Scr Mat Mat Damage Taken 1616 | . 554 1062 Core 559 | . 155 404 Absorbed by Shields . | . . . Core Remaining (%) 69 | 100 38 . Volleys Fired 44 | . 20 24 Largest 2 | . 2 2 Hottest 75 | . 70 75 Shots Fired 52 | . 23 29 Gun 39 | . 18 21 Cannon 8 | . . 8 Launcher 5 | . 5 . Special . | . . . Kinetic . | . . . Thermal 12 | . . 12 Explosive 5 | . 5 . Electromagnetic 35 | . 18 17 Robot Hit Streak 11 | . 6 11 Robot Miss Streak 2 | . 2 2 Penetration Max . | . . . Secondary Targets . | . . . Shots Hit Robots 39 | . 13 26 Core Hits 31 | . 22 9 Critical Hits . | . . . Critical Kills . | . . . Critical Parts Destroyed . | . . . Melee Attacks . | . . . Impact . | . . . Slashing . | . . . Piercing . | . . . Sneak Attacks . | . . . Combat Hostiles . | . . . Follow-up Attacks . | . . . Damage Inflicted 858 | . 485 373 Guns 388 | . 183 205 Cannons 168 | . . 168 Explosions 269 | . 269 . Melee . | . . . Ramming 33 | . 33 . Kinetic . | . . . Thermal 89 | . . 89 Explosive 269 | . 269 . Electromagnetic 467 | . 183 284 Impact . | . . . Slashing . | . . . Piercing . | . . . Highest Corruption 5 | . 5 . Average Corruption 3 | . 3 . Corruption Purged . | . . . Overload Shots . | . . . Overflow Damage 16 | . 16 . Projectiles . | . . . Explosions 16 | . 16 . Melee . | . . . Knockbacks . | . . . Impact . | . . . Kinetic . | . . . Secondary . | . . . Self-Inflicted Damage 77 | . 77 . Shots 2 | . 2 . Rammed 14 | . 14 . Targets Rammed 15 | . 15 . Kicked 1 | . 1 . Crushed . | . . . Highest Temperature 36 | . 36 23 Average Temperature 12 | . 15 6 Received Heat Transfer 777 | . 228 549 Siege Activations . | . . . Robots Corrupted . | . . . Combat Hostiles . | . . . Parts Fried 4 | . 2 2 Impact Corruptions . | . . . Robots Melted . | . . . Combat Hostiles . | . . . Parts Melted 1 | . . 1 Heat Transferred 370 | . . 370 Parts Sabotaged . | . . . Parts Stolen . | . . . Parts Stripped . | . . . Power Chain Reactions . | . . . Missiles Intercepted . | . . . Alert | -11 -10 -9 ------- Run | Scr Mat Mat Peak Influence 234 | . 210 234 Average Influence 105 | . 88 150 Maximum Alert Level 1 | . 1 1 Low Security (%) 85 | 100 78 89 Level 1 14 | . 21 10 Level 2 . | . . . Level 3 . | . . . Level 4 . | . . . Level 5 . | . . . High Security . | . . . Max Security . | . . . Squads Dispatched 7 | . 5 2 Investigation 3 | . 1 2 Extermination . | . . . Reinforcement 4 | . 4 . Assault . | . . . Garrison . | . . . Intercept . | . . . Construction Impeded . | . . . Haulers Reinforced . | . . . Stealth | -11 -10 -9 --------- Run | Scr Mat Mat Distress Signals 1 | . . 1 Communications Jammed . | . . . Distress Signals . | . . . Times Spotted 29 | . 15 14 Peak Tracking Total 10 | . 6 10 Tactical Retreats . | . . . Traps | -11 -10 -9 ------- Run | Scr Mat Mat Traps Triggered 1 | . 1 . Indirectly . | . . . Trap Hack Attempts . | . . . Triggered . | . . . Disarmed . | . . . Reprogrammed . | . . . Reused . | . . . Traps Extracted . | . . . Installed . | . . . Triggered . | . . . Machines | -11 -10 -9 ---------- Run | Scr Mat Mat Machines Disabled . | . . . Max in Single Turn . | . . . Machines Sabotaged . | . . . Garrisons Compromised . | . . . Overloaded Fab Kills . | . . . Fab Network Shutdowns . | . . . Hacking | -11 -10 -9 --------- Run | Scr Mat Mat Machines Accessed 3 | . 1 2 Terminals 1 | . . 1 Fabricators . | . . . Repair Stations 1 | . . 1 Recycling Units 1 | . 1 . Scanalyzers . | . . . Garrison Access . | . . . Total Hacks 12 | . 2 10 Successful 6 | . 1 5 Failed 6 | . 1 5 Catastrophic 1 | . . 1 Database Lockouts . | . . . Manual . | . . . Terminals 4 | . . 4 Fabricators . | . . . Repair Stations 6 | . . 6 Recycling Units 2 | . 2 . Scanalyzers . | . . . Garrison Access . | . . . Terminal Hacks 2 | . . 2 Record 2 | . . 2 Fabricator Hacks . | . . . Repair Station Hacks 3 | . . 3 Scan Component 1 | . . 1 Repair 1 | . . 1 Refit 1 | . . 1 Recycling Unit Hacks 1 | . 1 . Report Inventory 1 | . 1 . Scanalyzer . | . . . Garrison Access Hacks . | . . . Unauthorized Hacks . | . . . Terminals . | . . . Fabricators . | . . . Repair Stations . | . . . Recycling Units . | . . . Scanalyzers . | . . . Garrison Access . | . . . Data Cores Recovered . | . . . Used . | . . . Hacking Detections 2 | . . 2 Full Trace Events 2 | . . 2 Feedback Events . | . . . Feedback Blocked . | . . . Robot Schematics Acquired . | . . . Robots Built . | . . . Matter . | . . . Time . | . . . Total Robot Build Rating . | . . . Part Schematics Acquired . | . . . Parts Built . | . . . Matter . | . . . Time . | . . . Total Part Build Rating . | . . . Parts Repaired 1 | . . 1 Time 32 | . . 32 Parts Recycled . | . . . Recycled Matter . | . . . Retrieved Matter . | . . . Retrieved Components . | . . . Parts Scanalyzed . | . . . Part Schematics Acquired . | . . . Parts Damaged . | . . . Bothacking | -11 -10 -9 ------------ Run | Scr Mat Mat Used RIF Installer . | . . . Robots Hacked . | . . . Non-combat . | . . . Combat . | . . . Robot Hacks Applied . | . . . Relay Couplers Released . | . . . Robots Rewired . | . . . Allies Hacked . | . . . Hacks Repelled . | . . . Allies | -11 -10 -9 -------- Run | Scr Mat Mat Total Allies . | . . . Largest Group . | . . . Highest-Rated Group . | . . . Highest-Rated Ally . | . . . Total Orders . | . . . Ally Attacks . | . . . Total Damage . | . . . Kills . | . . . Allies Corrupted . | . . . Allies Melted . | . . . Intel | -11 -10 -9 ------- Run | Scr Mat Mat Robot Analysis Total . | . . . Derelict Logs Recovered . | . . . Drone Launches . | . . . Drone Recoveries . | . . . Exploration | -11 -10 -9 ------------- Run | Scr Mat Mat Turns Passed 669 | 64 331 274 Spaces Moved 432 | 50 215 167 Core 20 | 7 2 11 Treads . | . . . Legs 322 | 43 213 66 Wheels 90 | . . 90 Hover . | . . . Flight . | . . . Fastest Speed 50 | 50 50 50 Average Speed 109 | 110 119 97 Slowest Speed 150 | 120 120 150 Overloaded Moves . | . . . Propulsion Burnouts . | . . . Robots Hopped . | . . . Cave-ins Triggered . | . . . Exploration Rate (%) 19 | 3 35 19 Regions Visited 2 Branch Regions . Pre-discovered Areas . | . . . Known Exits Taken . | . . . Unknown Exits Taken 2 | 1 1 . Scrap Searched . | . . . Spaces Dug . | . . . Terrain Destroyed 16 | . 16 . Melee . | . . . Projectile . | . . . AOE 16 | . 16 . Actions | -11 -10 -9 --------- Run | Scr Mat Mat Total 566 | 56 266 244 Wait 47 | . 7 40 Move 431 | 49 215 167 Hop . | . . . Pick Up 5 | 2 2 1 Fast Attach 16 | 5 1 10 Attach 5 | . 4 1 Detach 3 | . 2 1 Swap . | . . . Drop 1 | . 1 . Fire 44 | . 20 24 Melee . | . . . Ram 10 | . 10 . Kick 4 | . 4 . Crush . | . . . Escape Stasis . | . . . Rewire . | . . . Trap . | . . . Miscellaneous . | . . . Route ------- -11/Scrapyard -10/Materials -9/Materials History --------- Turn | Location | Event 2 | -11/Scrapyard | Met Revision 17 37 | -11/Scrapyard | Discovered new exit (range 16) 65 | -11/Scrapyard | Entered Materials 315 | -10/Materials | Build established: Mutant 347 | -10/Materials | Discovered new exit (range 10) 387 | -10/Materials | Core integrity fell below 50% 396 | -10/Materials | Entered another Materials area 396 | -9/Materials | Evolved 2 slots: Propulsion x2 423 | -9/Materials | Lost 6 parts (1p2n1u2w) 525 | -9/Materials | Repaired Imp. Ion Engine 665 | -9/Materials | Core integrity fell below 50% 669 | -9/Materials | Core integrity fell below 20% 670 | -9/Materials | Destroyed by G-34 Mercenary with Small Laser Last Messages --------------- R-06 Scavenger collects Wheel. R-06 Scavenger collects Lgt. Ion Engine. W-16 Scout sends out distress signal. Acquired Lgt. EM Pulse Cannon. Imp. Heat Sink fried. Particle Gun fried. G-47 Trooper destroyed. Arm. Wheel destroyed. Aluminum Leg destroyed. Lgt. EM Pulse Cannon destroyed. Wheel destroyed. Y-45 Defender misfires. Aluminum Leg destroyed. Y-45 Defender misfires. Heat Sink destroyed. Imp. Ion Engine destroyed. Y-45 Defender misfires. R-06 Scavenger collects Lgt. Nuclear Core. R-06 Scavenger collects Aluminum Leg. K-01 Serf collects debris. Map ----- +----------------------------------------------------+ | ?????????????????????????????????????????????? | | ???????????????????###########???????????????? | | ???????????????????# #???????????????? | | ???????????????????# #???###########?? | | ???????????????????# ##### #?? | | ???????????????????# """"""" # # #?? | | ???????????????????# """"""" # # #?? | | ???????????????????# """"""" # # """ #?? | | ???????????????????# """"""" + + """"" #?? | | ???????????????????# """"""" # # """"" #?? | | ???????????????????########### # """"" #?? | | ?????????????????????????????# # """ #?? | | ?????????????????????????????# ###########?? | | ?????????????????????????????# # #?? | | ?????????????????????????????# # """"" #?? | | ?????????????????????????????# # ""T"" #?? | | ???????????????????????###???# # #?? | | ??????????????????????## ##### + """ """ #?? | | ??????????????????????# = # # """ """ #?? | | ??????????????????????# """%=# # """ """ #?? | | ??????????????????????# "R" # # #?? | | ??????????????????????# " " # ###########?? | | ??????????????????????# % / #???????????? | | ??????????????????????# % # #???????????? | | ???????????????????########### #???????????? | | ???????????????????# @%% # #?????##????? | | ???????????????????# gg*%% # ###### ###??? | | ???????????????????# rYgggg# # #??? | | ???????????????# ??# rg # # """#??? | | ???????????????# #######k### # """#??? | | ???????????????# # """#??? | | ???????????????+ + """#??? | | ???????????????# % # """#??? | | ???????????????# #########+## # #??? | | ?????????????????????# # # ""T"" #??? | | ?????????????????????# # # """"" #??? | | ?????????????????????# # ##########??? | | ?????????????????????# "Y" # #???????????? | | ?????????????????????# """ # #???????????? | | ?????????????????????# # ##??????????? | | ?????????????????????##/##### #??????????? | | ?????????????????????# === #??????????? | | ?????????????? + == + ""??????? | | ???????????# # == # ""??????? | | ???????????# # #??????????? | | ???????????# ?# ###??????????? | | ???????????# ??# #????????????? | | ???????????#######???# #????????????? | | ?????????????????????#]]] #????????????? | | ?????????????????????#]]] #????????????? | +----------------------------------------------------+ Best States ------------- Heat Dissipation 48 Energy Generation 12 Energy Capacity 265 Matter Stores 300 Matter Capacity 300 Sight Range 16 Terrain Scan Range 14 Terrain Scan Density 85 Armor Coverage 150 Evasion (%) 50 Item Schematics ----------------- None Robot Schematics ------------------ None Fabricated ------------ Nothing Alien Tech Used ----------------- None Achievements -------------- None Challenges ------------ None Game ------ Seed BladeStormNullifier Manual? 0 Play Time 00:12:18 Cumulative 3.7 hours Start 2019.12.30 @ 22:09:44 End 2019.12.30 @ 22:45:56 Sessions 1 Manual Loads 0 Difficulty Rogue Special Mode None Game No. 7 Rogue 7 Adventurer 0 Explorer 0 Win Type - Total 0 Types 0/0/0/0/0/0/0 Lore% 12 Gallery% 7 Achievement% 6 Wizard Run 0 Options --------- ASCII 0 Keyboard 1 Movement Numpad Keybinds 0 Fullscreen 2 Font 18/X11 Map View 76x50 Tactical HUD 0 Map Filters NONE Filters NONE Steam 1 RUN: f68948be-1519-42b9-898c-fb409602c7fc